[Event "Catalonia Championship Absolute 2024"]
[Site "Salou Tarragona"]
[Date "2024.05.12"]
[Round "1.2"]
[White "Serrano Batova, Vicent"]
[Black "Ayats Llobera, Gerard"]
[Result "0-1"]
[ECO "D95"]
[WhiteElo "2137"]
[BlackElo "2449"]
[Annotator "TA"]
[PlyCount "126"]
[EventDate "2024.05.06"]
[EventType "k.o."]
[EventCountry "ESP"]
[SourceTitle "playchess.com"]
[Source "ChessBase"]
[SourceQuality "1"]
[TimeControl "5400+30"]

{[%evp 14,126,-1,0,-6,-3,0,-6,-5,-3,3,-28,0,-65,-75,-60,-43,-74,-79,-75,-56,-54,-35,-22,-28,-20,-27,-22,-24,-21,-25,-46,-51,-39,-16,-14,-10,-9,-24,-44,-44,-51,-47,-62,-51,-55,-58,-55,-30,-68,-55,-63,-33,-35,-23,-56,-58,-137,-63,-209,-210,-377,-354,-377,-380,-370,-370,-378,-368,-371,-374,-378,-378,-366,-365,-361,-378,-378,-378,-495,-539,-736,-736,-732,-633,-722,-685,-4945,-1738,-1132,-1043,-5579,-5389,-831,-656,-29944,-29960,-29954,-8863,-29963,-29965,-29963,-29966,-29968,-29969,-29971,-29971,-29976,-29977,-29981,-29978,-29978,-29979,-29976,-29975]} 1. d4 {[%emt 0:00:03]} Nf6 {[%emt 0:00:04]} 2. Nf3 {[%emt 0:00:04]} g6 {[%emt 0:00:06]} 3. c4 {[%emt 0:00:04]} Bg7 {[%emt 0:00:05]} 4. Nc3 {[%emt 0:00:06]} d5 {[%emt 0:00:05]} 5. e3 {[%emt 0:02:08]} O-O {[%emt 0:00:37]} 6. Qb3 {[%emt 0:02:35]} e6 {[%emt 0:00:13]} 7. Be2 {[%emt 0:02:32]} b6 {[%emt 0:01:24]} 8. O-O {[%emt 0:01:25]} dxc4 {[%emt 0:01:27]} 9. Qxc4 {[%emt 0:00:40]} Ba6 {[%emt 0:04:06]} 10. Qa4 {[%emt 0:01:52]} Bxe2 {[%emt 0:09:09] The position is equal.} 11. Nxe2 {[%emt 0:00:14]} Qd7 {[%emt 0:00:24]} 12. Nc3 {[%emt 0:01:08]} Rc8 {[%emt 0:00:53]} 13. Ne5 {[%emt 0:07:01]} (13. Qc2 $11) 13... Qxa4 $15 {[%emt 0:01:44]} 14. Nxa4 {[%emt 0:00:08]} Nfd7 {[%emt 0:06:22]} 15. Nd3 {[%emt 0:05:28]} c5 {[%emt 0:00:34]} 16. dxc5 {[%emt 0:04:05]} b5 {[%emt 0:00:16] Black is more active.} 17. Nc3 {[%emt 0:00:43]} Bxc3 {[%emt 0:00:25]} 18. bxc3 {[%emt 0:00:02]} Nxc5 {[%emt 0:00:20]} 19. Nxc5 {[%emt 0:00:26]} Rxc5 {[%emt 0:00:01]} 20. Bd2 {[%emt 0:03:40]} Nd7 {[%emt 0:11:30]} 21. a4 {[%emt 0:12:15]} Rd5 {[%emt 0:00:13]} 22. Bc1 {[%emt 0:01:16]} bxa4 {[%emt 0:05:45]} 23. Rxa4 {[%emt 0:00:39]} Nc5 {[%emt 0:05:41]} 24. Rc4 {[%emt 0:05:17] Threatens to win with e4.} Nd3 {[%emt 0:01:29]} 25. Ra4 {[%emt 0:07:06]} Rc5 {[%emt 0:02:07]} 26. Ra3 {[%emt 0:13:30]} a5 {[%emt 0:03:55]} 27. e4 {[%emt 0:12:20]} Ne5 {[%emt 0:16:02]} 28. Bf4 {[%emt 0:01:01]} Nc4 {[%emt 0:00:37]} 29. Ra4 {[%emt 0:02:31]} e5 {[%emt 0:00:22]} 30. Bg5 {[%emt 0:01:33]} Kg7 {[%emt 0:01:48]} 31. Rfa1 {[%emt 0:06:17]} Rb8 {[%emt 0:03:22]} 32. f3 {[%emt 0:08:21]} Rb3 {[%emt 0:00:50][%cal Of7f6]} 33. Bd8 {[%emt 0:00:00][%cal Rd8a5]} Rbb5 {[%emt 0:02:44]} 34. Be7 {[%emt 0:00:00]} Rc8 {[%emt 0:00:18]} 35. R1a2 {[%emt 0:00:00] [#]} (35. Bh4 $15) 35... Rb3 {[%emt 0:01:33]} (35... f6 $1 $17 {Strongly threatening ...Kf7.} 36. Ra1 Rb7) 36. Rc2 {[%emt 0:00:35] Now White is beyond hope.} (36. Bh4 $15) 36... f6 $19 {[%emt 0:01:17]} 37. Re2 $2 {[%emt 0:01:22]} (37. Rca2 {was worth a try.}) 37... Kf7 {[%emt 0:01:53]} ({Weaker is} 37... Rxc3 38. Rea2 $19) 38. Bd8 {[%emt 0:00:20]} Rb1+ {[%emt 0:00:32]} ({And not} 38... Rxc3 39. Bxa5 Rc1+ 40. Be1 $11) 39. Kf2 {[%emt 0:00:05]} Nb2 {[%emt 0:00:11]} 40. Rxa5 {[%emt 0:01:05]} Rxd8 {[%emt 0:00:31]} 41. Ra7+ {[%emt 0:00:05]} Kg8 {[%emt 0:02:01]} 42. Kg3 {[%emt 0:00:06]} Nd3 {[%emt 0:00:24]} 43. Rd2 {[%emt 0:00:57]} Rb2 {[%emt 0:02:13]} 44. Rxb2 {[%emt 0:00:03]} Nxb2 {[%emt 0:00:01][%mdl 4096] Endgame. KRN-KR} 45. h4 {[%emt 0:00:21]} Nd3 {[%emt 0:00:31]} 46. h5 {[%emt 0:00:18]} Nf4 {[%emt 0:02:12]} 47. hxg6 {[%emt 0:00:49]} hxg6 {[%emt 0:00:09] And now ...Rd2 would win.} 48. Ra2 {[%emt 0:00:06]} Rd3 {[%emt 0:00:27]} 49. Kg4 {[%emt 0:00:48]} Rxc3 {[%emt 0:00:23]} 50. Ra8+ {[%emt 0:00:53]} Kg7 {[%emt 0:00:25]} 51. Ra7+ {[%emt 0:00:03]} Kh6 {[%emt 0:00:54][%cal Oc3c2] ...Rc2! is the strong threat.} 52. g3 {[%emt 0:01:07]} Nd3 {[%emt 0:00:29]} 53. Ra2 {[%emt 0:00:20] Inhibits Nf2+.} Rc1 {[%emt 0:01:01]} 54. Rd2 {[%emt 0:00:17] [#]} Rd1 $3 {[%emt 0:00:26][%mdl 512]} 55. Rh2+ {[%emt 0:00:47]} Kg7 {[%emt 0:00:07] ( -> ...Rf1)} 56. f4 {[%emt 0:00:48]} exf4 {[%emt 0:01:14] Black mates.} 57. gxf4 {[%emt 0:00:11]} Rf1 {[%emt 0:00:10]} 58. Rd2 {[%emt 0:00:58]} Nxf4 {[%emt 0:01:04]} 59. Rd7+ {[%emt 0:00:13]} Kh6 {[%emt 0:00:08]} 60. Rf7 {[%emt 0:00:20]} Ne6 {[%emt 0:00:23]} 61. e5 {[%emt 0:00:11]} Rf4+ {[%emt 0:01:53]} 62. Kg3 {[%emt 0:00:22]} fxe5 {[%emt 0:00:08]} 63. Re7 {[%emt 0:00:07]} Rf6 {[%emt 0:00:08] Weighted Error Value: White=0.75/Black=0.11 (very precise) .  Mistake:       	White=4     	Black=1      Inaccurate:     	White=6     	Black=2      OK:         	White=13    	Black=20     Best:        	White=2     	Black=3} 0-1

[Event "Catalonia Championship Absolute 2024"]
[Site "Salou Tarragona"]
[Date "2024.05.12"]
[Round "1.2"]
[White "Guasch Figuerola, Agusti"]
[Black "Guerra Mendez, Jose Angel"]
[Result "0-1"]
[ECO "D78"]
[WhiteElo "1991"]
[BlackElo "2489"]
[Annotator "RC"]
[PlyCount "182"]
[EventDate "2024.05.06"]
[EventType "k.o."]
[EventCountry "ESP"]
[SourceTitle "playchess.com"]
[Source "ChessBase"]
[SourceQuality "1"]
[TimeControl "5400+30"]

1. Nf3 {[%emt 0:00:03]} Nf6 {[%emt 0:00:16]} 2. b3 {[%emt 0:00:07]} g6 {[%emt 0:01:59]} 3. Bb2 {[%emt 0:00:18]} Bg7 {[%emt 0:00:09]} 4. g3 {[%emt 0:00:13]} O-O {[%emt 0:07:55]} 5. Bg2 {[%emt 0:00:32]} d5 {[%emt 0:01:24]} 6. c4 {[%emt 0:00:45]} c6 {[%emt 0:02:00]} 7. O-O {[%emt 0:01:02]} a5 {[%emt 0:04:12]} 8. d4 {[%emt 0:05:49]} Bf5 {[%emt 0:02:50]} 9. e3 {[%emt 0:03:49]} Na6 {[%emt 0:06:38]} 10. Nc3 {[%emt 0:05:01]} Ne4 {[%emt 0:01:30]} 11. Ne1 {[%emt 0:10:46]} Nxc3 {[%emt 0:12:58]} 12. Bxc3 {[%emt 0:00:17]} b5 {[%emt 0:00:07]} 13. Rc1 {[%emt 0:15:08]} b4 {[%emt 0:02:22]} 14. Ba1 {[%emt 0:05:29]} Qd6 {[%emt 0:13:59]} 15. g4 {[%emt 0:03:12]} Bd7 {[%emt 0:01:44]} 16. Nd3 {[%emt 0:05:50]} Rac8 {[%emt 0:38:27]} 17. c5 {[%emt 0:03:37]} Qe6 {[%emt 0:00:00]} 18. h3 {[%emt 0:02:04]} Nc7 {[%emt 0:00:00]} 19. Nf4 {[%emt 0:04:49]} Qf6 {[%emt 0:00:00]} 20. Qf3 {[%emt 0:00:49]} Qh4 {[%emt 0:00:00]} 21. Kh2 {[%emt 0:06:08]} f5 {[%emt 0:00:00]} 22. Qg3 {[%emt 0:00:16]} Qxg3+ {[%emt 0:00:00]} 23. Kxg3 {[%emt 0:00:07]} Ra8 {[%emt 0:00:00]} 24. Nd3 {[%emt 0:01:49]} Bc8 {[%emt 0:00:00]} 25. Rfd1 {[%emt 0:01:28]} Ba6 {[%emt 0:00:00]} 26. Nb2 {[%emt 0:04:13]} e5 {[%emt 0:00:00]} 27. dxe5 {[%emt 0:06:36]} Bxe5+ {[%emt 0:00:00]} 28. f4 {[%emt 0:00:04]} Bg7 {[%emt 0:00:00]} 29. Bf1 {[%emt 0:01:01]} Bxf1 {[%emt 0:00:00]} 30. Rxf1 {[%emt 0:00:11]} Rfe8 {[%emt 0:00:00]} 31. Rf3 {[%emt 0:05:23]} Nb5 {[%emt 0:00:00]} 32. Nd3 {[%emt 0:00:36]} Nc3 {[%emt 0:00:14]} 33. Bxc3 {[%emt 0:00:23]} Bxc3 {[%emt 0:00:11]} 34. gxf5 {[%emt 0:01:49]} gxf5 {[%emt 0:00:05]} 35. Kh2 {[%emt 0:03:15]} Kf7 {[%emt 0:00:39]} 36. Rg1 {[%emt 0:01:04]} a4 {[%emt 0:02:31]} 37. bxa4 {[%emt 0:01:28]} Rxa4 {[%emt 0:00:05]} 38. Rg2 {[%emt 0:00:11]} Rea8 {[%emt 0:01:31]} 39. Rff2 {[%emt 0:00:23]} Ke6 {[%emt 0:00:39]} 40. h4 {[%emt 0:00:07]} Ra3 {[%emt 0:01:06]} 41. h5 {[%emt 0:01:32]} R8a4 {[%emt 0:00:04]} 42. Nc1 {[%emt 0:01:11]} Ra7 {[%emt 0:02:39]} 43. Nb3 {[%emt 0:00:12]} Kf6 {[%emt 0:00:04]} 44. h6 {[%emt 0:00:57]} Re7 {[%emt 0:00:18]} 45. Rf3 {[%emt 0:00:32]} Ra8 {[%emt 0:00:31]} 46. Rfg3 {[%emt 0:00:49]} Rae8 {[%emt 0:00:25]} 47. Rg7 {[%emt 0:00:13]} Rxg7 {[%emt 0:01:52]} 48. Rxg7 {[%emt 0:00:18]} Rxe3 {[%emt 0:00:30]} 49. Rxh7 {[%emt 0:00:12]} Kg6 {[%emt 0:01:01]} 50. Rc7 {[%emt 0:00:18]} Kxh6 {[%emt 0:00:10]} 51. Rxc6+ {[%emt 0:00:02]} Kh5 {[%emt 0:00:10]} 52. Rd6 {[%emt 0:01:18]} Kg4 {[%emt 0:00:05]} 53. c6 {[%emt 0:00:31]} Be1 {[%emt 0:00:39]} 54. c7 {[%emt 0:01:10]} Rc3 {[%emt 0:00:42]} 55. Rd7 {[%emt 0:00:35]} Bg3+ {[%emt 0:01:01]} 56. Kg2 {[%emt 0:00:09]} Rc2+ {[%emt 0:00:42]} 57. Kf1 {[%emt 0:00:12]} Bxf4 {[%emt 0:00:47]} 58. Rg7+ {[%emt 0:00:40]} Kh5 {[%emt 0:00:50]} 59. Rd7 {[%emt 0:00:35]} Bxc7 {[%emt 0:00:30]} 60. Rxd5 {[%emt 0:00:10]} Kg4 {[%emt 0:00:24]} 61. Rd4+ {[%emt 0:00:37]} f4 {[%emt 0:00:20]} 62. Rxb4 {[%emt 0:00:17]} Rxa2 {[%emt 0:00:26]} 63. Nd4 {[%emt 0:00:19]} Be5 {[%emt 0:00:54]} 64. Ne2 {[%emt 0:00:18]} Ra3 {[%emt 0:00:31]} 65. Nxf4 {[%emt 0:00:35]} Bxf4 {[%emt 0:00:15]} 66. Ke2 {[%emt 0:00:10]} Re3+ {[%emt 0:00:43]} 67. Kd1 {[%emt 0:00:23]} Kf3 {[%emt 0:00:30]} 68. Kc2 {[%emt 0:00:22]} Re7 {[%emt 0:00:46]} 69. Kd3 {[%emt 0:00:27]} Be3 {[%emt 0:00:23]} 70. Rh4 {[%emt 0:00:31]} Rd7+ {[%emt 0:00:07]} 71. Kc4 {[%emt 0:00:14]} Bf4 {[%emt 0:00:16]} 72. Rh3+ {[%emt 0:00:17]} Ke4 {[%emt 0:00:06]} 73. Rh4 {[%emt 0:00:05]} Rc7+ {[%emt 0:00:06]} 74. Kb5 {[%emt 0:00:11]} Ke5 {[%emt 0:00:39]} 75. Rh5+ {[%emt 0:00:07]} Kd4 {[%emt 0:00:28]} 76. Rh4 {[%emt 0:00:09]} Rf7 {[%emt 0:00:36]} 77. Rg4 {[%emt 0:00:33]} Kd5 {[%emt 0:00:11]} 78. Kb4 {[%emt 0:00:31]} Be5 {[%emt 0:00:15]} 79. Kb3 {[%emt 0:00:38]} Rf3+ {[%emt 0:00:11]} 80. Kc2 {[%emt 0:00:19]} Bd4 {[%emt 0:00:22]} 81. Rg8 {[%emt 0:00:19]} Kc4 {[%emt 0:00:22]} 82. Rc8+ {[%emt 0:00:04]} Bc5 {[%emt 0:00:06]} 83. Kd2 {[%emt 0:00:23]} Rf2+ {[%emt 0:00:10]} 84. Ke1 {[%emt 0:00:11]} Ra2 {[%emt 0:02:06]} 85. Rc7 {[%emt 0:00:47]} Kd4 {[%emt 0:00:40]} 86. Rd7+ {[%emt 0:00:10]} Ke3 {[%emt 0:00:57]} 87. Kd1 {[%emt 0:00:45]} Bd4 {[%emt 0:00:26]} 88. Kc1 {[%emt 0:01:54]} Kd3 {[%emt 0:00:15]} 89. Rb7 {[%emt 0:01:17]} Rg2 {[%emt 0:00:43]} 90. Rb3+ {[%emt 0:01:11]} Bc3 {[%emt 0:00:10]} 91. Kb1 {[%emt 0:00:17]} Rg1+ {[%emt 0:00:09]} 0-1

[Event "Catalonia Championship Absolute 2024"]
[Site "Salou Tarragona"]
[Date "2024.05.12"]
[Round "1.2"]
[White "Riera Morilla, Elisabeth"]
[Black "Alsina Leal, Daniel"]
[Result "0-1"]
[ECO "A04"]
[WhiteElo "1951"]
[BlackElo "2510"]
[Annotator "TA"]
[PlyCount "66"]
[EventDate "2024.05.06"]
[EventType "k.o."]
[EventCountry "ESP"]
[SourceTitle "playchess.com"]
[Source "ChessBase"]
[SourceQuality "1"]
[TimeControl "5400+30"]

{[%evp 17,66,-27,-16,-53,-33,-47,-39,-87,-47,-72,-58,-63,-32,-154,-165,-189,-179,-209,-203,-263,-261,-361,-244,-253,-207,-457,-445,-510,-505,-500,-508,-750,-747,-681,-467,-625,-507,-503,-506,-499,-497,-618,-613,-580,-563,-758,-668,-29995,-29996,-29996,-29997]} 1. e4 {[%emt 1:31:00]} c5 {[%emt 1:31:00]} 2. Nf3 {[%emt 0:00:30]} d6 {[%emt 0:00:30]} 3. d3 {[%emt 0:00:30]} Nc6 {[%emt 0:00:30]} 4. g3 {[%emt 0:00:30]} g6 {[%emt 0:00:30]} 5. Bg2 {[%emt 0:00:30]} Bg7 {[%emt 0:00:30]} 6. c3 {[%emt 0:00:30]} e5 {[%emt 0:00:30]} 7. O-O {[%emt 0:00:30]} Nge7 {[%emt 0:00:30]} 8. Re1 {[%emt 0:00:30]} O-O {[%emt 0:00:30]} 9. Nbd2 {[%emt 0:00:30][%cal Bb1d2,Bd2f1,Bf1e3,Be3d5][%mdl 32]} h6 {[%emt 0:00:30]} 10. Nf1 {[%emt 0:00:30]} Be6 {[%emt 0:00:30]} 11. Ne3 {[%emt 0:00:30]} Qd7 {[%emt 0:00:30]} 12. c4 {[%emt 0:00:30]} (12. Nh4 $15 {was preferrable.}) 12... Rab8 {[%emt 0:00:30]} 13. Nd5 {[%emt 0:00:30][%cal Oc1h6]} f5 {[%emt 0:00:30]} 14. a3 {[%emt 0:00:30]} b5 {[%emt 0:00:30]} 15. Bh3 {[%emt 0:00:30]} (15. cxb5 $15 Rxb5 16. Nxe7+ Nxe7 (16... Qxe7 17. Nh4 $11) 17. b4) 15... fxe4 $17 {[%emt 0:00:30]} 16. Bxe6+ {[%emt 0:00:30]} Qxe6 {[%emt 0:00:30]} 17. Nxe7+ {[%emt 0:00:30]} Nxe7 {[%emt 0:00:30]} ({Don't take} 17... Qxe7 18. cxb5 exf3 (18... Rxb5 19. dxe4 Nd4 20. Nd2 $19) (18... Rxf3 $2 19. bxc6 Rxd3 20. Qg4 $17) 19. bxc6) 18. Rxe4 {[%emt 0:00:30]} bxc4 {[%emt 0:00:30]} 19. Rxc4 {[%emt 0:00:30]} Qf7 {[%emt 0:00:30]} 20. Kg2 {[%emt 0:00:30]} Qd5 {[%emt 0:00:30]} 21. Qe2 $2 {[%emt 0:00:30] [#]} (21. Re4) 21... Rf7 $19 {[%emt 0:00:30]} 22. Qe4 {[%emt 0:00:30]} Rbf8 {[%emt 0:00:30]} 23. Qxd5 {[%emt 0:00:30]} Nxd5 {[%emt 0:00:30]} 24. Nd2 {[%emt 0:00:30]} Rxf2+ {[%emt 0:00:30]} 25. Kh3 {[%emt 0:00:30]} Ne3 {[%emt 0:00:30]} 26. Re4 {[%emt 0:00:30]} Nf1 {[%emt 0:00:30]} 27. Nxf1 {[%emt 0:00:30]} Rxf1 {[%emt 0:00:30]} 28. Rc4 {[%emt 0:00:30]} Rh1 {[%emt 0:00:30]} 29. Rc2 {[%emt 0:00:30] Wards off Rf2} Rff1 {[%emt 0:00:30]} 30. Rb1 {[%emt 0:00:30]} a5 {[%emt 0:00:30]} 31. g4 {[%emt 0:00:30]} a4 {[%emt 0:00:30][%cal Oe5e4] [#] White must now prevent ...e4!} 32. Kg2 {[%emt 0:00:30]} Rhg1+ {[%emt 0:00:30]} 33. Kh3 {[%emt 0:00:30]} Rf3+ {[%emt 0:00:30] Black took control after the opening.   Weighted Error Value: White=0.86/Black=0.35.  Mistake:       	White=3     	---        Inaccurate:     	White=3     	Black=3      OK:         	White=6     	Black=6      Best:        	White=1     	Black=2} 0-1

[Event "Catalonia Championship Absolute 2024"]
[Site "Salou Tarragona"]
[Date "2024.05.12"]
[Round "1.4"]
[White "Ribera Veganzones, Serni"]
[Black "Salinas Tomas, Daniel"]
[Result "0-1"]
[ECO "C88"]
[WhiteElo "2341"]
[BlackElo "2370"]
[Annotator "ChessBase"]
[PlyCount "92"]
[EventDate "2024.05.06"]
[EventType "k.o."]
[EventCountry "ESP"]
[SourceTitle "playchess.com"]
[Source "ChessBase"]
[SourceQuality "1"]
[TimeControl "5400+30"]

1. e4 {[%emt 1:15:52]} e5 {[%emt 1:15:50]} 2. Nf3 {[%emt 0:00:26]} Nc6 {[%emt 0:00:26]} 3. Bb5 {[%emt 0:00:26]} a6 {[%emt 0:15:44]} 4. Ba4 Nf6 {[%emt 0:00:00]} 5. O-O {[%emt 0:00:53]} Be7 {[%emt 0:00:00]} 6. Re1 {[%emt 0:00:26]} b5 {[%emt 0:00:00]} 7. Bb3 {[%emt 0:00:28]} O-O {[%emt 0:00:00]} 8. a4 {[%emt 0:00:31]} b4 {[%emt 0:00:00]} 9. d3 {[%emt 0:00:36]} d6 {[%emt 0:00:00]} 10. Nbd2 {[%emt 0:00:28]} Be6 {[%emt 0:00:00]} 11. Nc4 {[%emt 0:15:54]} Nd7 {[%emt 0:04:00]} 12. Be3 {[%emt 0:00:00]} Rb8 {[%emt 0:00:00]} 13. a5 {[%emt 0:00:00]} Bf6 {[%emt 0:00:00]} 14. c3 {[%emt 0:00:00]} Nc5 {[%emt 0:00:00]} 15. Bxc5 {[%emt 0:00:00]} dxc5 {[%emt 0:00:00]} 16. Qc2 {[%emt 0:00:00]} Qe7 {[%emt 0:00:00]} 17. Nfd2 {[%emt 0:00:00]} Rfd8 {[%emt 0:00:00]} 18. Ne3 {[%emt 0:00:00]} Bg5 {[%emt 0:00:00]} 19. Nd5 {[%emt 0:00:00]} Qd7 {[%emt 0:00:00]} 20. Nf1 {[%emt 0:00:00]} Qd6 {[%emt 0:00:00]} 21. Bc4 {[%emt 0:00:00]} Na7 {[%emt 0:00:00]} 22. Red1 {[%emt 0:00:00]} Nb5 {[%emt 0:00:00]} 23. h3 {[%emt 0:00:00]} g6 {[%emt 0:00:00]} 24. Ra4 {[%emt 0:00:00]} Kg7 {[%emt 0:00:17]} 25. Nh2 {[%emt 0:00:22]} h5 {[%emt 0:01:42]} 26. Nf3 {[%emt 0:07:08]} Bh6 27. Raa1 {[%emt 0:00:00]} f6 {[%emt 0:01:14]} 28. Nh2 {[%emt 0:00:00]} Rd7 {[%emt 0:00:27]} 29. Nf1 {[%emt 0:00:00]} f5 {[%emt 0:00:38]} 30. Nde3 {[%emt 0:00:00]} f4 {[%emt 0:01:36]} 31. Bxe6 {[%emt 0:00:00]} Qxe6 {[%emt 0:00:26]} 32. Nc4 {[%emt 0:00:00]} f3 {[%emt 0:00:25]} 33. gxf3 {[%emt 0:01:50]} Rf8 {[%emt 0:00:26]} 34. Kg2 {[%emt 0:01:15]} Qf6 {[%emt 0:00:30]} 35. Nh2 {[%emt 0:00:49]} Bf4 {[%emt 0:00:44]} 36. Nf1 {[%emt 0:00:30]} Qg5+ {[%emt 0:00:27]} 37. Kh1 {[%emt 0:00:28]} Qh4 {[%emt 0:01:01]} 38. Kg2 {[%emt 0:00:25]} Rdf7 {[%emt 0:00:31]} 39. Re1 {[%emt 0:00:53]} Bh6 {[%emt 0:00:40]} 40. Nh2 {[%emt 0:00:30]} Qg5+ {[%emt 0:00:35]} 41. Kf1 {[%emt 0:00:41]} Rxf3 {[%emt 0:00:48]} 42. Nxf3 {[%emt 0:00:25]} Rxf3 {[%emt 0:00:26]} 43. Ke2 {[%emt 0:00:31]} Qg2 {[%emt 0:00:59]} 44. Rf1 {[%emt 0:00:30]} Bf4 {[%emt 0:00:26]} 45. Nd2 {[%emt 0:00:29]} Rxh3 {[%emt 0:00:45]} 46. Rg1 {[%emt 0:00:31]} Re3+ {[%emt 0:00:27]} 0-1

[Event "Catalonia Championship Absolute 2024"]
[Site "Salou Tarragona"]
[Date "2024.05.13"]
[Round "2.1"]
[White "Alsina Leal, Daniel"]
[Black "Granados Gomez, Manuel"]
[Result "1-0"]
[WhiteElo "2510"]
[BlackElo "2358"]
[Annotator "TA"]
[PlyCount "15"]
[EventDate "2024.05.06"]
[EventType "k.o."]
[EventCountry "ESP"]
[SourceTitle "playchess.com"]
[Source "ChessBase"]
[SourceQuality "1"]
[TimeControl "5400+30"]

{[%evp 9,15,52,118,111,158,120,168,174]} 1. e4 {[%emt 0:02:14]} e5 {[%emt 0:00:17]} 2. Nf3 {[%emt 0:00:06]} Nc6 {[%emt 0:00:09]} 3. Bb5 {[%emt 0:00:20]} Bc5 {[%emt 0:06:37]} 4. O-O {[%emt 0:03:24]} Qf6 {[%emt 0:02:20]} 5. c3 {[%emt 0:02:07]} h6 {[%emt 0:00:13]} ({Better is} 5... a6 $14 6. Bxc6 dxc6) 6. d4 $1 $16 {[%emt 0:05:17]} Bd6 {[%emt 0:07:54]} (6... Bb6 $142) 7. Nxe5 {[%emt 0:18:45]} Nxe5 {[%emt 0:00:34] [#]} (7... Bxe5 $16 8. dxe5 Qxe5) 8. f4 $1 {[%emt 0:00:43] Mistake:       	---       	Black=2      OK:         	White=1     	---} (8. dxe5 $2 {too greedy.} Qxe5 9. g3 Qxb5 $19) 1-0

[Event "Catalonia Championship Absolute 2024"]
[Site "Salou Tarragona"]
[Date "2024.05.13"]
[Round "2.1"]
[White "Ayats Llobera, Gerard"]
[Black "Garcia Ramos, Daniel"]
[Result "1-0"]
[ECO "B12"]
[WhiteElo "2449"]
[BlackElo "2406"]
[Annotator "TA"]
[PlyCount "53"]
[EventDate "2024.05.06"]
[EventType "k.o."]
[EventCountry "ESP"]
[SourceTitle "playchess.com"]
[Source "ChessBase"]
[SourceQuality "1"]
[TimeControl "5400+30"]

{[%evp 12,53,28,27,29,3,11,0,0,0,27,4,42,0,0,0,0,-8,-10,-8,0,0,0,0,44,-25,44,36,79,82,121,116,376,388,379,339,947,909,1050,868,1148,1047,1082,1067]} 1. e4 {[%emt 0:00:02]} c6 {[%emt 0:00:18]} 2. d4 {[%emt 0:00:10]} d5 {[%emt 0:00:36]} 3. e5 {[%emt 0:00:04]} Bf5 {[%emt 0:00:35]} 4. Nf3 {[%emt 0:00:10]} e6 {[%emt 0:00:17]} 5. Be2 {[%emt 0:00:11]} Nd7 {[%emt 0:01:27]} 6. O-O {[%emt 0:00:28]} h6 {[%emt 0:00:11]} 7. Nbd2 {[%emt 0:00:12]} a5 {[%emt 0:10:30]} 8. h3 {[%emt 0:03:25]} a4 {[%emt 0:00:44]} 9. c4 {[%emt 0:03:53]} Ne7 {[%emt 0:06:24] The position is equal.} 10. a3 {[%emt 0:05:26]} Qa5 {[%emt 0:13:51]} 11. Re1 {[%emt 0:08:18]} Bh7 {[%emt 0:03:51]} 12. cxd5 {[%emt 0:04:47]} ({Better is} 12. b4 $14 axb3 13. Qxb3 (13. Nxb3 Qa4 $11)) 12... Nxd5 $11 {[%emt 0:01:32]} 13. Nc4 {[%emt 0:01:20]} Qa7 {[%emt 0:00:40]} 14. Bd3 {[%emt 0:00:25]} Bxd3 {[%emt 0:02:25]} 15. Qxd3 {[%emt 0:00:10]} Qa6 {[%emt 0:01:10]} 16. Qc2 {[%emt 0:01:50]} Be7 {[%emt 0:06:11]} 17. Bd2 {[%emt 0:03:49]} Rc8 {[%emt 0:11:03]} 18. Rac1 {[%emt 0:01:20]} ({White should try} 18. Re4 $14) 18... O-O {[%emt 0:04:09]} (18... c5 $11) 19. Re4 $14 {[%emt 0:05:44]} Kh8 {[%emt 0:02:52]} 20. Rg4 {[%emt 0:00:55]} c5 {[%emt 0:07:17] [#]} 21. Nd6 $1 {[%emt 0:03:20] White is more active.} Bxd6 {[%emt 0:13:00][%mdl 8192] [#] A mistake that costs the game.} (21... Rc6 $16) 22. Bxh6 $1 $18 {[%emt 0:01:31]} (22. exd6 N5f6 23. Ne5 Nxg4 (23... Qxd6 24. Rh4 $15) 24. Nxd7 Rfd8 $11 (24... Qxd6 25. Nxf8 Qh2+ 26. Kf1 $16)) 22... g6 {[%emt 0:04:45]} ({Not} 22... gxh6 23. Qd2 $18) 23. exd6 {[%emt 0:01:54]} f5 $2 {[%emt 0:04:02]} (23... Qxd6 24. Bxf8 Qxf8 25. dxc5 (25. Qxa4 N7b6 $18) 25... Rxc5) 24. Rh4 {[%emt 0:01:38] White is clearly winning.} Rf7 {[%emt 0:01:36]} 25. dxc5 {[%emt 0:02:57][%cal Oc2d2] Hoping for Qd2!} Kg8 {[%emt 0:00:13]} 26. Rxa4 {[%emt 0:01:24]} Qb5 {[%emt 0:00:42]} 27. Nd4 {[%emt 0:01:07] Weighted Error Value: White=0.14 (very precise) /Black=0.50.  Loses game:     	---       	Black=1      Mistake:       	White=2     	Black=2      Inaccurate:     	White=1     	Black=5      OK:         	White=6     	Black=6      Best:        	White=1     	---        Strong:       	White=2     	---} 1-0